[Event "Asian Amateur Rapid Women 2024"]
[Site "Al Ain"]
[Date "2024.12.15"]
[Round "1.16"]
[White "Joshi, Sindira"]
[Black "Rowdah Ghalib Alafeefi"]
[Result "1/2-1/2"]
[ECO "C56"]
[WhiteElo "1735"]
[BlackElo "1450"]
[Annotator "NA"]
[PlyCount "169"]
[EventDate "2024.12.15"]
[EventType "swiss"]
[EventCountry "UAE"]
[SourceTitle "playchess.com"]
[Source "ChessBase"]
[SourceQuality "1"]
[TimeControl "900+10"]

1. e4 {[%emt 0:00:02]} e5 {[%emt 0:00:01]} 2. Nf3 {[%emt 0:00:03]} Nc6 {[%emt 0:00:05]} 3. d4 {[%emt 0:00:03]} exd4 {[%emt 0:00:05]} 4. Bc4 {[%emt 0:00:04]} Nf6 {[%emt 0:00:17]} 5. e5 {[%emt 0:00:04]} d5 {[%emt 0:00:02]} 6. Bb5 {[%emt 0:00:09]} Ne4 {[%emt 0:00:04]} 7. Nxd4 {[%emt 0:00:07]} Bd7 {[%emt 0:00:16]} 8. Bxc6 {[%emt 0:00:11]} bxc6 {[%emt 0:00:02]} 9. O-O {[%emt 0:00:10]} Bc5 {[%emt 0:00:21]} 10. f3 {[%emt 0:00:46]} Ng5 {[%emt 0:00:03]} 11. f4 {[%emt 0:00:09]} Ne4 {[%emt 0:00:10]} 12. Be3 {[%emt 0:00:24]} Bb6 {[%emt 0:00:21]} 13. Nd2 {[%emt 0:00:31]} Nxd2 {[%emt 0:00:43]} 14. Qxd2 {[%emt 0:00:14]} O-O {[%emt 0:00:13]} 15. Kh1 {[%emt 0:02:10]} c5 {[%emt 0:00:46]} 16. Nb3 {[%emt 0:00:55]} d4 {[%emt 0:00:16]} 17. Bg1 {[%emt 0:00:15]} Bc6 {[%emt 0:00:26]} 18. f5 {[%emt 0:00:52]} Kh8 {[%emt 0:04:20]} 19. f6 {[%emt 0:00:41]} Rg8 {[%emt 0:00:08]} 20. Bf2 {[%emt 0:05:17]} gxf6 {[%emt 0:01:07]} 21. Bg3 {[%emt 0:00:05]} Rg6 {[%emt 0:01:46]} 22. exf6 {[%emt 0:01:22]} Qd5 {[%emt 0:01:17]} 23. c3 {[%emt 0:02:27]} d3 {[%emt 0:00:29]} 24. Rad1 {[%emt 0:00:19]} a5 {[%emt 0:00:44]} 25. Rf3 {[%emt 0:00:31]} a4 {[%emt 0:00:44]} 26. Rxd3 {[%emt 0:00:23]} Qe4 {[%emt 0:01:26]} 27. Nc1 {[%emt 0:00:33]} Rag8 {[%emt 0:00:54]} 28. Re1 {[%emt 0:00:16]} Qf5 {[%emt 0:00:32]} 29. Rd8 {[%emt 0:00:07]} c4 {[%emt 0:00:15]} 30. Rxg8+ {[%emt 0:00:05]} Rxg8 {[%emt 0:00:02]} 31. Ne2 {[%emt 0:00:07]} Bb7 {[%emt 0:01:33]} 32. Nd4 {[%emt 0:00:06]} Qd5 {[%emt 0:00:22]} 33. Re2 {[%emt 0:00:24]} Qh5 {[%emt 0:00:18]} 34. Kg1 {[%emt 0:00:24]} Qg6 {[%emt 0:00:16]} 35. Qe1 {[%emt 0:00:07]} Qg5 {[%emt 0:00:17]} 36. Re8 {[%emt 0:00:05]} Qg6 {[%emt 0:00:14]} 37. Rxg8+ {[%emt 0:00:03]} Qxg8 {[%emt 0:00:01]} 38. Qf2 {[%emt 0:00:09]} Qg6 {[%emt 0:00:09]} 39. h3 {[%emt 0:00:05]} Qg5 {[%emt 0:00:15]} 40. Qf4 {[%emt 0:00:05]} Qd5 {[%emt 0:00:02]} 41. Qf2 {[%emt 0:00:09]} Ba7 {[%emt 0:00:18]} 42. Qe2 {[%emt 0:00:04]} Qd7 {[%emt 0:00:07]} 43. Qe7 {[%emt 0:00:09]} Qc8 {[%emt 0:00:33]} 44. Qxf7 {[%emt 0:00:07]} Qg8 {[%emt 0:00:00]} 45. Qxg8+ {[%emt 0:00:09]} Kxg8 {[%emt 0:00:00]} 46. Bxc7 {[%emt 0:00:06]} Kf7 {[%emt 0:00:00]} 47. Be5 {[%emt 0:00:04]} Bb6 {[%emt 0:00:11]} 48. Kf1 {[%emt 0:00:07]} Bd8 {[%emt 0:00:04]} 49. Nf5 {[%emt 0:00:17]} Bxf6 {[%emt 0:00:13]} 50. Bxf6 {[%emt 0:00:05]} Kxf6 {[%emt 0:00:01]} 51. Nd6 {[%emt 0:00:02]} Bd5 {[%emt 0:00:20]} 52. Kf2 {[%emt 0:00:05]} Kg5 {[%emt 0:00:19]} 53. Nb5 {[%emt 0:00:06]} Kf4 {[%emt 0:00:12]} 54. Nd4 {[%emt 0:00:09]} Ke5 {[%emt 0:00:15]} 55. g3 {[%emt 0:00:09]} Ke4 {[%emt 0:00:10]} 56. Ke2 {[%emt 0:00:10]} Bb7 {[%emt 0:00:08]} 57. a3 {[%emt 0:00:05]} Bc8 {[%emt 0:00:05]} 58. h4 {[%emt 0:00:11]} Ke5 {[%emt 0:00:07]} 59. Ke3 {[%emt 0:00:02]} Kf6 {[%emt 0:00:01]} 60. Kf4 {[%emt 0:00:02]} Kg6 {[%emt 0:00:03]} 61. Nc6 {[%emt 0:00:06]} Kh5 {[%emt 0:00:18]} 62. Ne5 {[%emt 0:00:06]} Be6 {[%emt 0:00:09]} 63. Nc6 {[%emt 0:00:09]} Bd7 {[%emt 0:00:23]} 64. Na5 {[%emt 0:00:06]} Be6 {[%emt 0:00:05]} 65. Nb7 {[%emt 0:00:05]} Bd7 {[%emt 0:00:22]} 66. Nc5 {[%emt 0:00:10]} Bc6 {[%emt 0:00:05]} 67. Ne6 {[%emt 0:00:11]} Bd7 {[%emt 0:00:09]} 68. Ng7+ {[%emt 0:00:06]} Kg6 {[%emt 0:00:04]} 69. Ke4 {[%emt 0:00:20]} Kxg7 {[%emt 0:00:02]} 70. Ke5 {[%emt 0:00:02]} Bg4 {[%emt 0:00:13]} 71. Kd5 {[%emt 0:00:02]} Be2 {[%emt 0:00:02]} 72. Kc5 {[%emt 0:00:01]} Kf7 {[%emt 0:00:12]} 73. g4 {[%emt 0:00:04]} Ke6 {[%emt 0:00:17]} 74. Kb4 {[%emt 0:00:02]} Kd6 {[%emt 0:00:05]} 75. Kxa4 {[%emt 0:00:07]} Bxg4 {[%emt 0:00:03]} 76. Kb4 {[%emt 0:00:02]} Be6 {[%emt 0:00:02]} 77. Kb5 {[%emt 0:00:01]} Kc7 {[%emt 0:00:02]} 78. h5 {[%emt 0:00:16]} h6 {[%emt 0:00:01]} 79. a4 {[%emt 0:00:04]} Kb8 {[%emt 0:00:02]} 80. Kb6 {[%emt 0:00:01]} Bf7 {[%emt 0:00:08]} 81. Kc5 {[%emt 0:00:01]} Ka7 {[%emt 0:00:01]} 82. Kb5 {[%emt 0:00:10]} Ka8 {[%emt 0:00:07]} 83. Kc5 {[%emt 0:00:03]} Ka7 {[%emt 0:00:01]} 84. Kb5 {[%emt 0:00:01]} Ka8 {[%emt 0:00:17]} 85. Kc5 {[%emt 0:00:02]} 1/2-1/2

[Event "Asian Amateur Rapid Women 2024"]
[Site "Al Ain"]
[Date "2024.12.15"]
[Round "1.17"]
[White "Mera Abdulaziz Aidarous"]
[Black "Asudani Ruhani Raj"]
[Result "0-1"]
[ECO "B24"]
[WhiteElo "1584"]
[BlackElo "1613"]
[Annotator "NA"]
[PlyCount "66"]
[EventDate "2024.12.15"]
[EventType "swiss"]
[EventCountry "UAE"]
[SourceTitle "playchess.com"]
[Source "ChessBase"]
[SourceQuality "1"]
[TimeControl "900+10"]

1. e4 {[%emt 0:08:37]} c5 {[%emt 0:00:02]} 2. Nc3 {[%emt 0:00:03]} Nc6 {[%emt 0:00:02]} 3. d3 {[%emt 0:00:02]} Nf6 {[%emt 0:00:04]} 4. g3 {[%emt 0:00:05]} g6 {[%emt 0:00:04]} 5. Be3 {[%emt 0:00:38]} d6 {[%emt 0:00:03]} 6. Qd2 {[%emt 0:00:07]} Bg7 {[%emt 0:00:10]} 7. f3 {[%emt 0:02:31]} O-O {[%emt 0:00:32]} 8. Bh6 {[%emt 0:00:06]} d5 {[%emt 0:01:04]} 9. h4 {[%emt 0:00:59]} dxe4 {[%emt 0:00:22]} 10. Bxg7 {[%emt 0:01:02]} Kxg7 {[%emt 0:00:12]} 11. Nxe4 {[%emt 0:00:04]} Qc7 {[%emt 0:01:00]} 12. Ne2 {[%emt 0:01:12]} Nd4 {[%emt 0:00:40]} 13. Nxd4 {[%emt 0:00:55]} cxd4 {[%emt 0:00:30]} 14. Rg1 {[%emt 0:00:12]} Bd7 {[%emt 0:00:45]} 15. g4 {[%emt 0:00:07]} Rac8 {[%emt 0:00:30]} 16. O-O-O {[%emt 0:00:05]} Ba4 {[%emt 0:00:29]} 17. b3 {[%emt 0:00:08]} Bd7 {[%emt 0:00:17]} 18. h5 {[%emt 0:00:17]} Nxe4 {[%emt 0:00:38]} 19. fxe4 {[%emt 0:00:15]} Qd6 {[%emt 0:00:39]} 20. Kb2 {[%emt 0:00:22]} Rc6 {[%emt 0:00:20]} 21. Be2 {[%emt 0:00:11]} Rfc8 {[%emt 0:00:16]} 22. Rc1 {[%emt 0:00:03]} Ra6 {[%emt 0:00:13]} 23. a4 {[%emt 0:00:21]} b5 {[%emt 0:00:24]} 24. a5 {[%emt 0:00:17]} Rc3 {[%emt 0:00:52]} 25. Ra1 {[%emt 0:00:07]} Qb4 {[%emt 0:00:27]} 26. Qf4 {[%emt 0:00:30]} Rf6 {[%emt 0:00:13]} 27. Qc1 {[%emt 0:00:03]} Rf2 {[%emt 0:00:39]} 28. Qe1 {[%emt 0:00:08]} Rf6 {[%emt 0:00:55]} 29. Qg3 {[%emt 0:00:13]} Rfc6 {[%emt 0:01:02]} 30. Rgc1 {[%emt 0:00:03]} Be6 {[%emt 0:00:43]} 31. Ra3 {[%emt 0:00:13]} Bxb3 {[%emt 0:01:40]} 32. Rxb3 {[%emt 0:00:15]} Rxb3+ {[%emt 0:00:03]} 33. cxb3 {[%emt 0:00:06]} Qd2+ {[%emt 0:00:03]} 0-1

[Event "Asian Amateur Rapid Women 2024"]
[Site "Al Ain"]
[Date "2024.12.15"]
[Round "1.18"]
[White "Almaamari, Zainab Darwish"]
[Black "Prakash, Sadhana"]
[Result "0-1"]
[ECO "C54"]
[WhiteElo "1751"]
[BlackElo "1408"]
[Annotator "NA"]
[PlyCount "100"]
[EventDate "2024.12.15"]
[EventType "swiss"]
[EventCountry "UAE"]
[SourceTitle "playchess.com"]
[Source "ChessBase"]
[SourceQuality "1"]
[TimeControl "900+10"]

1. e4 {[%emt 0:00:02]} e5 {[%emt 0:00:01]} 2. Nf3 {[%emt 0:00:03]} Nc6 {[%emt 0:00:02]} 3. Bc4 {[%emt 0:00:03]} Bc5 {[%emt 0:00:03]} 4. c3 {[%emt 0:00:02]} Nf6 {[%emt 0:00:03]} 5. d4 {[%emt 0:00:02]} exd4 {[%emt 0:00:13]} 6. b4 {[%emt 0:00:02]} Bb6 {[%emt 0:00:27]} 7. e5 {[%emt 0:00:04]} d5 {[%emt 0:01:18]} 8. exf6 {[%emt 0:00:03]} dxc4 {[%emt 0:00:10]} 9. Qe2+ {[%emt 0:00:01]} Be6 {[%emt 0:01:34]} 10. fxg7 {[%emt 0:00:04]} Rg8 {[%emt 0:00:39]} 11. b5 {[%emt 0:00:13]} Ne7 {[%emt 0:02:06]} 12. cxd4 {[%emt 0:00:02]} Bxd4 {[%emt 0:00:09]} 13. Nxd4 {[%emt 0:00:02]} Qxd4 {[%emt 0:01:19]} 14. Bb2 {[%emt 0:00:02]} Qc5 {[%emt 0:00:51]} 15. Nc3 {[%emt 0:00:13]} O-O-O {[%emt 0:00:54]} 16. O-O {[%emt 0:00:42]} Nf5 {[%emt 0:00:26]} 17. Qh5 {[%emt 0:01:22]} Qb4 {[%emt 0:01:11]} 18. Rab1 {[%emt 0:01:34]} Nxg7 {[%emt 0:00:48]} 19. Qxh7 {[%emt 0:00:10]} Bf5 {[%emt 0:00:07]} 20. Qh4 {[%emt 0:00:59]} Bxb1 {[%emt 0:00:03]} 21. Rxb1 {[%emt 0:00:02]} Qc5 {[%emt 0:00:34]} 22. a4 {[%emt 0:00:39]} Rh8 {[%emt 0:00:09]} 23. Qg4+ {[%emt 0:00:53]} Ne6 {[%emt 0:00:09]} 24. Ne4 {[%emt 0:00:19]} Qh5 {[%emt 0:00:05]} 25. Qg3 {[%emt 0:00:30]} Rdg8 {[%emt 0:00:12]} 26. Qe5 {[%emt 0:00:58]} Qxe5 {[%emt 0:00:05]} 27. Bxe5 {[%emt 0:00:01]} Rh5 {[%emt 0:00:08]} 28. Nf6 {[%emt 0:00:10]} Rxe5 {[%emt 0:00:04]} 29. Nxg8 {[%emt 0:00:02]} Nc5 {[%emt 0:00:15]} 30. a5 {[%emt 0:00:10]} Nb3 {[%emt 0:00:07]} 31. Rd1 {[%emt 0:00:31]} c3 {[%emt 0:00:11]} 32. f4 {[%emt 0:00:08]} c2 {[%emt 0:00:03]} 33. Rf1 {[%emt 0:00:12]} Nd2 {[%emt 0:00:13]} 34. Rc1 {[%emt 0:00:06]} Rc5 {[%emt 0:00:02]} 35. b6 {[%emt 0:00:09]} axb6 {[%emt 0:00:04]} 36. axb6 {[%emt 0:00:02]} cxb6 {[%emt 0:00:03]} 37. Nh6 {[%emt 0:00:24]} Nb3 {[%emt 0:00:20]} 38. Re1 {[%emt 0:00:09]} c1=Q {[%emt 0:00:07]} 39. Rxc1 {[%emt 0:00:01]} Rxc1+ {[%emt 0:00:01]} 40. Kf2 {[%emt 0:00:01]} Rc2+ {[%emt 0:00:04]} 41. Kg3 {[%emt 0:00:01]} Rc7 {[%emt 0:00:06]} 42. f5 {[%emt 0:00:01]} Nd4 {[%emt 0:00:01]} 43. f6 {[%emt 0:00:01]} b5 {[%emt 0:00:02]} 44. Ng8 {[%emt 0:00:07]} b4 {[%emt 0:00:02]} 45. Ne7+ {[%emt 0:00:01]} Rxe7 {[%emt 0:00:01]} 46. fxe7 {[%emt 0:00:01]} Kd7 {[%emt 0:00:01]} 47. h4 {[%emt 0:00:12]} Nf5+ {[%emt 0:00:02]} 48. Kg4 {[%emt 0:00:01]} Nxh4 {[%emt 0:00:02]} 49. Kxh4 {[%emt 0:00:01]} b3 {[%emt 0:00:01]} 50. g4 {[%emt 0:00:01]} b2 {[%emt 0:00:00]} 0-1

[Event "Asian Amateur Rapid Women 2024"]
[Site "Al Ain"]
[Date "2024.12.15"]
[Round "2.1"]
[White "Asudani Ruhani Raj"]
[Black "Saeidpour, Mona"]
[Result "1-0"]
[ECO "C02"]
[WhiteElo "1613"]
[BlackElo "1905"]
[Annotator "RC"]
[PlyCount "147"]
[EventDate "2024.12.15"]
[EventType "swiss"]
[EventCountry "UAE"]
[SourceTitle "playchess.com"]
[Source "ChessBase"]
[SourceQuality "1"]
[TimeControl "900+10"]

1. d4 {[%emt 0:00:05]} d5 {[%emt 0:00:01]} 2. c4 {[%emt 0:00:02]} c6 {[%emt 0:00:00]} 3. cxd5 {[%emt 0:00:01]} cxd5 {[%emt 0:00:02]} 4. Nc3 {[%emt 0:00:02]} Nc6 {[%emt 0:00:19]} 5. e4 {[%emt 0:00:02]} e6 {[%emt 0:01:08]} 6. e5 {[%emt 0:00:02]} Nge7 {[%emt 0:00:41]} 7. Nf3 {[%emt 0:00:02]} Ng6 {[%emt 0:01:06]} 8. Bd3 {[%emt 0:00:06]} Be7 {[%emt 0:00:14]} 9. O-O {[%emt 0:00:07]} O-O {[%emt 0:00:05]} 10. Be3 {[%emt 0:00:06]} a6 {[%emt 0:00:52]} 11. Rc1 {[%emt 0:00:05]} Bd7 {[%emt 0:00:05]} 12. Nd2 {[%emt 0:00:30]} Rc8 {[%emt 0:02:52]} 13. f4 {[%emt 0:01:10]} Na5 {[%emt 0:04:56]} 14. f5 {[%emt 0:01:26]} exf5 {[%emt 0:00:06]} 15. Nxd5 {[%emt 0:00:23]} Bg5 {[%emt 0:00:53]} 16. Qe2 {[%emt 0:04:58]} Bc6 {[%emt 0:02:30]} 17. Bxf5 {[%emt 0:03:03]} Qxd5 {[%emt 0:01:04]} 18. Bxg5 {[%emt 0:00:34]} Qxd4+ {[%emt 0:00:43]} 19. Be3 {[%emt 0:00:28]} Qxe5 {[%emt 0:00:07]} 20. Bxc8 {[%emt 0:00:13]} Rxc8 {[%emt 0:00:08]} 21. Nf3 {[%emt 0:00:41]} Qe7 {[%emt 0:00:21]} 22. Qd2 {[%emt 0:00:28]} Rd8 {[%emt 0:00:12]} 23. Qc3 {[%emt 0:00:26]} Bb5 {[%emt 0:00:16]} 24. Rfe1 {[%emt 0:00:17]} Rd3 {[%emt 0:00:13]} 25. Qc8+ {[%emt 0:01:02]} Qf8 {[%emt 0:00:01]} 26. Qxf8+ {[%emt 0:00:12]} Nxf8 {[%emt 0:00:04]} 27. Rc8 {[%emt 0:00:06]} Nc6 {[%emt 0:00:17]} 28. Rxf8+ {[%emt 0:00:22]} Kxf8 {[%emt 0:00:07]} 29. Bc5+ {[%emt 0:00:01]} Ne7 {[%emt 0:00:19]} 30. Bxe7+ {[%emt 0:00:06]} Kg8 {[%emt 0:00:04]} 31. Bc5 {[%emt 0:00:08]} h6 {[%emt 0:00:07]} 32. h3 {[%emt 0:00:19]} Bc6 {[%emt 0:00:07]} 33. Ne5 {[%emt 0:00:04]} Rd5 {[%emt 0:00:24]} 34. Nxc6 {[%emt 0:00:02]} Rxc5 {[%emt 0:00:02]} 35. Ne7+ {[%emt 0:00:03]} Kf8 {[%emt 0:00:03]} 36. g4 {[%emt 0:00:15]} Rc2 {[%emt 0:00:05]} 37. Nf5 {[%emt 0:00:12]} Rxb2 {[%emt 0:00:06]} 38. a3 {[%emt 0:00:08]} Rb3 {[%emt 0:00:06]} 39. Re3 {[%emt 0:00:02]} Rb1+ {[%emt 0:00:08]} 40. Kf2 {[%emt 0:00:03]} a5 {[%emt 0:00:14]} 41. Nd6 {[%emt 0:00:04]} g6 {[%emt 0:00:06]} 42. Re8+ {[%emt 0:00:10]} Kg7 {[%emt 0:00:01]} 43. Re7 {[%emt 0:00:12]} Rb2+ {[%emt 0:00:26]} 44. Kf3 {[%emt 0:00:08]} Rb3+ {[%emt 0:00:04]} 45. Re3 {[%emt 0:03:44]} Rb6 {[%emt 0:00:15]} 46. Nc4 {[%emt 0:00:00]} Ra6 {[%emt 0:00:19]} 47. Re5 {[%emt 0:00:00]} Rf6+ {[%emt 0:00:12]} 48. Ke3 {[%emt 0:00:00]} b6 {[%emt 0:00:12]} 49. Kd4 {[%emt 0:00:00]} Rf3 {[%emt 0:00:09]} 50. Re3 {[%emt 0:00:00]} Rf6 {[%emt 0:00:06]} 51. Rb3 {[%emt 0:00:00]} Rf4+ {[%emt 0:00:16]} 52. Kd5 {[%emt 0:00:00]} h5 {[%emt 0:00:16]} 53. gxh5 {[%emt 0:00:00]} gxh5 {[%emt 0:00:07]} 54. Nxb6 {[%emt 0:00:00]} h4 {[%emt 0:00:13]} 55. Nc4 {[%emt 0:00:00]} Kg6 {[%emt 0:00:17]} 56. Re3 {[%emt 0:00:00]} f6 {[%emt 0:00:01]} 57. Kc5 {[%emt 0:00:00]} Rf5+ {[%emt 0:00:06]} 58. Kb6 {[%emt 0:00:00]} a4 {[%emt 0:00:05]} 59. Nb2 {[%emt 0:00:00]} Rg5 {[%emt 0:00:04]} 60. Nxa4 {[%emt 0:00:06]} Rg3 {[%emt 0:00:01]} 61. Rxg3+ {[%emt 0:00:36]} hxg3 {[%emt 0:00:02]} 62. Nc3 {[%emt 0:00:03]} g2 {[%emt 0:00:26]} 63. Ne2 {[%emt 0:00:02]} Kg5 {[%emt 0:00:28]} 64. a4 {[%emt 0:00:11]} f5 {[%emt 0:00:06]} 65. a5 {[%emt 0:00:07]} f4 {[%emt 0:00:01]} 66. Ng1 {[%emt 0:00:09]} Kh4 {[%emt 0:00:05]} 67. a6 {[%emt 0:00:03]} Kg3 {[%emt 0:00:27]} 68. a7 {[%emt 0:00:04]} Kh2 {[%emt 0:00:19]} 69. Nf3+ {[%emt 0:00:14]} Kxh3 {[%emt 0:00:02]} 70. a8=Q {[%emt 0:00:08]} Kg3 {[%emt 0:00:03]} 71. Kc5 {[%emt 0:00:17]} Kf2 {[%emt 0:00:03]} 72. Kd4 {[%emt 0:00:10]} g1=Q {[%emt 0:00:07]} 73. Nxg1 {[%emt 0:00:03]} Kxg1 {[%emt 0:00:01]} 74. Qf3 {[%emt 0:00:07]} 1-0

[Event "Asian Amateur Rapid Women 2024"]
[Site "Al Ain"]
[Date "2024.12.15"]
[Round "2.2"]
[White "Sabirova, Shakhnoza"]
[Black "Sananda R"]
[Result "1/2-1/2"]
[ECO "C62"]
[WhiteElo "1903"]
[BlackElo "1696"]
[Annotator "RC"]
[PlyCount "151"]
[EventDate "2024.12.15"]
[EventType "swiss"]
[EventCountry "UAE"]
[SourceTitle "playchess.com"]
[Source "ChessBase"]
[SourceQuality "1"]
[TimeControl "900+10"]

1. e4 {[%emt 0:00:03]} e5 {[%emt 0:00:03]} 2. Nf3 {[%emt 0:00:03]} Nc6 {[%emt 0:00:02]} 3. Nc3 {[%emt 0:00:03]} Nf6 {[%emt 0:00:16]} 4. Bb5 {[%emt 0:00:02]} d6 {[%emt 0:00:03]} 5. d4 {[%emt 0:00:14]} exd4 {[%emt 0:00:27]} 6. Nxd4 {[%emt 0:00:04]} Bd7 {[%emt 0:00:03]} 7. O-O {[%emt 0:00:25]} Nxd4 {[%emt 0:00:22]} 8. Bxd7+ {[%emt 0:01:09]} Qxd7 {[%emt 0:00:02]} 9. Qxd4 {[%emt 0:00:04]} Be7 {[%emt 0:00:07]} 10. h3 {[%emt 0:01:01]} O-O {[%emt 0:00:06]} 11. Be3 {[%emt 0:00:05]} a6 {[%emt 0:01:11]} 12. Rad1 {[%emt 0:00:05]} Rad8 {[%emt 0:00:07]} 13. Ne2 {[%emt 0:00:28]} Qc6 {[%emt 0:00:42]} 14. Ng3 {[%emt 0:00:16]} Rfe8 {[%emt 0:00:30]} 15. Rfe1 {[%emt 0:00:44]} Nd7 {[%emt 0:02:18]} 16. Nh5 {[%emt 0:00:46]} Bf6 {[%emt 0:00:02]} 17. Nxf6+ {[%emt 0:00:05]} Nxf6 {[%emt 0:00:02]} 18. Bg5 {[%emt 0:00:30]} Re6 {[%emt 0:04:08]} 19. c4 {[%emt 0:01:36]} Rde8 {[%emt 0:00:10]} 20. f3 {[%emt 0:00:02]} Nd7 {[%emt 0:00:47]} 21. b3 {[%emt 0:00:26]} h6 {[%emt 0:00:52]} 22. Bc1 {[%emt 0:00:11]} f5 {[%emt 0:02:05]} 23. Bb2 {[%emt 0:01:16]} Nf6 {[%emt 0:00:02]} 24. e5 {[%emt 0:01:34]} dxe5 {[%emt 0:00:15]} 25. Qf2 {[%emt 0:00:43]} e4 {[%emt 0:00:17]} 26. Bxf6 {[%emt 0:00:14]} Rxf6 {[%emt 0:00:02]} 27. Rd5 {[%emt 0:01:40]} Qe6 {[%emt 0:01:55]} 28. Qd4 {[%emt 0:00:44]} Qc6 {[%emt 0:01:38]} 29. fxe4 {[%emt 0:00:50]} fxe4 {[%emt 0:00:19]} 30. Rxe4 {[%emt 0:00:11]} Rxe4 {[%emt 0:00:26]} 31. Qxe4 {[%emt 0:00:02]} Rf8 {[%emt 0:00:09]} 32. Kh2 {[%emt 0:01:02]} Qf6 {[%emt 0:00:03]} 33. Rd3 {[%emt 0:00:56]} b6 {[%emt 0:00:07]} 34. Qd5+ {[%emt 0:00:27]} Kh8 {[%emt 0:00:04]} 35. Rg3 {[%emt 0:00:31]} a5 {[%emt 0:00:41]} 36. Rf3 {[%emt 0:01:48]} Qe7 {[%emt 0:00:02]} 37. Rd3 {[%emt 0:00:15]} Qf6 {[%emt 0:00:07]} 38. Qd7 {[%emt 0:00:08]} Qf4+ {[%emt 0:00:01]} 39. Rg3 {[%emt 0:00:03]} Qe5 {[%emt 0:00:06]} 40. a3 {[%emt 0:00:25]} Rg8 {[%emt 0:00:11]} 41. b4 {[%emt 0:00:04]} axb4 {[%emt 0:00:17]} 42. axb4 {[%emt 0:00:01]} Qf4 {[%emt 0:00:04]} 43. Qg4 {[%emt 0:00:21]} Qxg4 {[%emt 0:00:25]} 44. Rxg4 {[%emt 0:00:01]} Re8 {[%emt 0:00:02]} 45. Rd4 {[%emt 0:00:03]} Re7 {[%emt 0:00:00]} 46. Kg3 {[%emt 0:00:13]} Kg8 {[%emt 0:00:01]} 47. Kf4 {[%emt 0:00:01]} Kf7 {[%emt 0:00:02]} 48. g4 {[%emt 0:00:06]} Kf6 {[%emt 0:00:05]} 49. Rd5 {[%emt 0:00:08]} g5+ {[%emt 0:00:03]} 50. Kf3 {[%emt 0:00:02]} Kg6 {[%emt 0:00:09]} 51. Rd4 {[%emt 0:00:06]} Kf6 {[%emt 0:00:06]} 52. Re4 {[%emt 0:00:21]} Rd7 {[%emt 0:00:14]} 53. Ke2 {[%emt 0:00:22]} Rd6 {[%emt 0:00:23]} 54. Re8 {[%emt 0:00:42]} Rd4 {[%emt 0:00:18]} 55. Rf8+ {[%emt 0:00:17]} Kg7 {[%emt 0:00:03]} 56. Rc8 {[%emt 0:00:13]} Rxc4 {[%emt 0:00:01]} 57. b5 {[%emt 0:00:01]} Rc5 {[%emt 0:00:22]} 58. Kf3 {[%emt 0:00:08]} Kf6 {[%emt 0:00:29]} 59. Rf8+ {[%emt 0:00:05]} Kg6 {[%emt 0:00:08]} 60. Rc8 {[%emt 0:00:01]} Rxb5 {[%emt 0:00:20]} 61. Rxc7 {[%emt 0:00:03]} Rc5 {[%emt 0:00:07]} 62. Rb7 {[%emt 0:00:03]} Rc6 {[%emt 0:00:01]} 63. Ke4 {[%emt 0:00:03]} Kf6 {[%emt 0:00:11]} 64. Rh7 {[%emt 0:00:04]} Kg6 {[%emt 0:00:01]} 65. Rb7 {[%emt 0:00:01]} Kf6 {[%emt 0:00:47]} 66. Rh7 {[%emt 0:00:02]} Kg6 {[%emt 0:00:14]} 67. Rb7 {[%emt 0:00:02]} Re6+ {[%emt 0:00:00]} 68. Kd5 {[%emt 0:00:06]} Rf6 {[%emt 0:00:00]} 69. Ke5 {[%emt 0:00:27]} Rc6 {[%emt 0:00:00]} 70. Kd5 {[%emt 0:00:06]} Rc5+ {[%emt 0:00:05]} 71. Kd6 {[%emt 0:01:20]} Rb5 {[%emt 0:00:01]} 72. Rb8 {[%emt 0:00:09]} Rb3 {[%emt 0:00:23]} 73. Ke5 {[%emt 0:00:07]} b5 {[%emt 0:00:38]} 74. Rb6+ {[%emt 0:00:10]} Kg7 {[%emt 0:00:04]} 75. Rb7+ {[%emt 0:00:02]} Kg6 {[%emt 0:00:07]} 76. Rb6+ {[%emt 0:00:00]} 1/2-1/2

[Event "Asian Amateur Rapid Women 2024"]
[Site "Al Ain"]
[Date "2024.12.15"]
[Round "2.3"]
[White "Smaraki, Mohanty"]
[Black "Zhumabek, Nursaya"]
[Result "1-0"]
[ECO "E61"]
[WhiteElo "1745"]
[BlackElo "1448"]
[Annotator "NA RC"]
[PlyCount "65"]
[EventDate "2024.12.15"]
[EventType "swiss"]
[EventCountry "UAE"]
[SourceTitle "playchess.com"]
[Source "ChessBase"]
[SourceQuality "1"]
[TimeControl "900+10"]

1. c4 {[%emt 0:00:01]} e5 {[%emt 0:00:04]} 2. Nc3 {[%emt 0:00:02]} Nf6 {[%emt 0:00:02]} 3. g3 {[%emt 0:00:02]} g6 {[%emt 0:00:01]} 4. Bg2 {[%emt 0:00:02]} Bg7 {[%emt 0:00:01]} 5. e3 {[%emt 0:00:04]} O-O {[%emt 0:00:09]} 6. Nge2 {[%emt 0:00:30]} d6 {[%emt 0:00:07]} 7. O-O {[%emt 0:00:04]} Nc6 {[%emt 0:00:02]} 8. d4 {[%emt 0:00:11]} exd4 {[%emt 0:00:08]} 9. exd4 {[%emt 0:00:48]} Bf5 {[%emt 0:00:05]} 10. a3 {[%emt 0:00:15]} a5 {[%emt 0:00:08]} 11. h3 {[%emt 0:01:05]} Re8 {[%emt 0:00:41]} 12. g4 {[%emt 0:01:06]} Be4 {[%emt 0:00:20]} 13. f3 {[%emt 0:00:16]} Bxf3 {[%emt 0:00:52]} 14. Rxf3 {[%emt 0:00:41]} Nd7 {[%emt 0:00:31]} 15. Bf4 {[%emt 0:00:44]} Nb6 {[%emt 0:01:16]} 16. d5 {[%emt 0:01:01]} Ne5 {[%emt 0:00:12]} 17. Bxe5 {[%emt 0:00:09]} Rxe5 {[%emt 0:00:31]} 18. Qd3 {[%emt 0:00:39]} Qe7 {[%emt 0:00:56]} 19. Raf1 {[%emt 0:00:16]} f6 {[%emt 0:00:23]} 20. Nd4 {[%emt 0:00:39]} Rf8 {[%emt 0:01:04]} 21. Ne6 {[%emt 0:00:13]} Rf7 {[%emt 0:00:05]} 22. b3 {[%emt 0:02:51]} Nd7 {[%emt 0:00:57]} 23. Ne4 {[%emt 0:00:23]} Nc5 {[%emt 0:00:41]} 24. N4xc5 {[%emt 0:00:07]} dxc5 {[%emt 0:00:10]} 25. Re3 {[%emt 0:00:16]} Qd6 {[%emt 0:00:41]} 26. Rxe5 {[%emt 0:00:41]} Qxe5 {[%emt 0:00:13]} 27. Qe4 {[%emt 0:00:04]} Qb2 {[%emt 0:00:29]} 28. Nd8 {[%emt 0:00:49]} Rf8 {[%emt 0:02:46]} 29. Qe6+ {[%emt 0:00:07]} Kh8 {[%emt 0:00:01]} 30. Nf7+ {[%emt 0:00:05]} Rxf7 {[%emt 0:00:02]} 31. Qxf7 {[%emt 0:00:02]} h6 {[%emt 0:00:08]} 32. Qxg6 {[%emt 0:00:06]} Qxb3 {[%emt 0:00:08]} 33. Qe8+ {[%emt 0:00:15]} 1-0

[Event "Asian Amateur Rapid Women 2024"]
[Site "Al Ain"]
[Date "2024.12.15"]
[Round "2.4"]
[White "Antonova, Nadezhda"]
[Black "Shamsa, Amer"]
[Result "1-0"]
[ECO "A06"]
[WhiteElo "1989"]
[BlackElo "1465"]
[Annotator "RC"]
[PlyCount "35"]
[EventDate "2024.12.15"]
[EventType "swiss"]
[EventCountry "UAE"]
[SourceTitle "playchess.com"]
[Source "ChessBase"]
[SourceQuality "1"]
[TimeControl "900+10"]

1. Nf3 {[%emt 0:00:02]} d5 {[%emt 0:00:09]} 2. b3 {[%emt 0:00:06]} Nc6 {[%emt 0:00:04]} 3. Bb2 {[%emt 0:00:02]} Nf6 {[%emt 0:00:19]} 4. e3 {[%emt 0:00:11]} Bf5 {[%emt 0:00:46]} 5. Bb5 {[%emt 0:00:15]} Bd7 {[%emt 0:01:27]} 6. O-O {[%emt 0:00:09]} e6 {[%emt 0:00:01]} 7. d4 {[%emt 0:00:51]} Bd6 {[%emt 0:00:18]} 8. Nbd2 {[%emt 0:00:28]} O-O {[%emt 0:00:04]} 9. Bd3 {[%emt 0:00:39]} Re8 {[%emt 0:00:44]} 10. Ne5 {[%emt 0:00:07]} Qe7 {[%emt 0:02:24]} 11. a3 {[%emt 0:00:32]} Bc8 {[%emt 0:00:58]} 12. f4 {[%emt 0:00:42]} Bxe5 {[%emt 0:01:27]} 13. fxe5 {[%emt 0:00:15]} Nd7 {[%emt 0:00:17]} 14. Qh5 {[%emt 0:02:06]} h6 {[%emt 0:00:14]} 15. Rf3 {[%emt 0:00:53]} Rf8 {[%emt 0:00:45]} 16. Raf1 {[%emt 0:00:16]} Nd8 {[%emt 0:02:49]} 17. Rg3 {[%emt 0:01:50]} Kh8 {[%emt 0:00:32]} 18. Rf4 {[%emt 0:00:08]} 1-0